bitfinex-derivatives/quotes_ETHF0:USTF0_20250330
["timestamp","ask_amount","ask_price","bid_price","bid_amount"]
[1743310982658,5.04281,1841.6,1841.5,0.7013]
[1743310982859,3.9565,1841.6,1841.5,1.78767]
[1743310983163,3.9565,1841.6,1841.5,3.21267]
[1743310983365,3.9565,1841.6,1841.5,2.1263]
[1743310984162,3.9565,1841.6,1841.5,3.21267]
[1743310984466,3.9565,1841.6,1841.5,2.1263]
[1743310984965,3.9565,1841.6,1841.5,3.21267]
[1743310985165,3.9565,1841.6,1841.5,2.1263]
[1743310985467,0.7487,1841.6,1841.5,1.425]
[1743310986067,0.7487,1841.6,1841.5,2.51137]
[1743310986464,0.7487,1841.6,1841.5,3.19697]
[1743310987068,0.008127,1841.7,1841.6,1.08631]
[1743310987263,0.008127,1841.7,1841.6,1.4901]
[1743310987570,0.008127,1841.7,1841.6,2.57641]
[1743310988166,0.008127,1841.7,1841.6,1.4901]
[1743310988361,0.008127,1841.7,1841.6,2.57641]
[1743310988562,0.008127,1841.7,1841.6,1.4901]
[1743310989068,1.094377,1841.7,1841.6,1.4901]
[1743310991667,1.08643,1841.4,1841.3,3.2078]
[1743310991972,1.08653,1841.3,1841.1,1.0866]
[1743310992170,2.0871,1841.2,1841.1,2.4967]
[1743310993673,3.17365,1841.2,1841.1,1.4101]
[1743310993872,2.0871,1841.2,1841.1,1.4101]
[1743310994172,3.17365,1841.2,1841.1,1.4101]
[1743310994372,3.89485,1841.2,1841.0,2.1034]
[1743310994571,1.3742,1841.1,1841.0,2.1034]
[1743310996462,0.682,1841.2,1841.0,3.19002]
[1743310996665,0.682,1841.2,1841.1,1.4526]
[1743310996861,2.0562,1841.2,1841.1,1.4526]
[1743310997069,1.3742,1841.2,1841.1,2.53921]
[1743310997274,1.3742,1841.2,1841.1,1.4526]
[1743310998875,2.46075,1841.2,1841.1,1.4526]
[1743311001372,4.582,1841.2,1840.8,0.008127]
[1743311001573,1.08672,1840.9,1840.8,1.409127]
[1743311001772,4.2945,1841.0,1840.8,1.409127]
[1743311001972,1.4809,1840.9,1840.8,2.495897]
[1743311002377,2.56762,1840.9,1840.8,1.409127]
[1743311002879,1.4809,1840.9,1840.8,2.495907]
[1743311003080,1.4309,1840.9,1840.8,2.495907]
[1743311003275,3.2078,1841.0,1840.9,1.08672]
[1743311003476,1.4469,1841.1,1840.9,3.9198]
[1743311003883,2.53351,1841.1,1841.0,1.3754]
[1743311004381,1.4469,1841.1,1841.0,1.3754]
[1743311005179,1.4469,1841.1,1841.0,2.46207]
[1743311005381,1.4469,1841.1,1841.0,1.3754]
[1743311006381,2.8049,1841.1,1841.0,1.3754]
[1743311006983,3.2078,1841.2,1841.1,1.08661]
[1743311007582,1.4064,1841.3,1841.2,1.08655]
[1743311007777,0.7445,1841.6,1841.3,1.08645]
[1743311007778,0.68,1841.5,1841.3,1.08645]
[1743311007984,2.0864,1841.5,1841.4,1.4236]
[1743311008681,1.4064,1841.5,1841.4,2.51003]
[1743311008874,3.2078,1841.6,1841.5,1.08637]
[1743311009075,3.2078,1841.6,1841.5,3.25367]
[1743311010479,2.094527,1841.7,1841.5,3.25367]
[1743311010686,2.094527,1841.7,1841.6,2.1728]
[1743311011888,3.180777,1841.7,1841.6,2.1728]
[1743311012287,6.388577,1841.7,1841.6,1.4691]
[1743311012687,6.388577,1841.7,1841.4,1.0864]
[1743311012688,5.302327,1841.7,1841.4,1.0864]
[1743311012893,2.0936,1841.6,1841.4,2.5276]
[1743311013092,1.3867,1841.5,1841.4,2.5276]
[1743311014695,1.3867,1841.5,1841.3,3.2078]
[1743311014994,0.699,1841.4,1841.3,5.73545]
[1743311015194,0.699,1841.4,1841.3,4.29425]
[1743311017496,1.3867,1841.5,1841.3,4.29425]
[1743311017696,2.1258,1841.5,1841.3,4.29425]
[1743311018095,1.4309,1841.4,1841.3,4.29425]
[1743311019296,0.008127,1841.7,1841.6,1.08631]
[1743311019693,0.008127,1841.7,1841.6,1.82361]
[1743311029598,0.008127,1841.7,1841.6,5.28561]
[1743311030204,0.737827,1841.7,1841.6,5.28561]
[1743311031907,0.737827,1841.7,1841.6,6.74931]
[1743311034305,0.737827,1841.7,1841.6,6.01201]
[1743311034501,0.737827,1841.7,1841.5,0.9735]
[1743311034706,2.1256,1841.6,1841.5,5.52087]
[1743311035698,2.1256,1841.6,1841.5,6.88877]
[1743311036307,2.1256,1841.6,1841.5,5.91527]
[1743311036909,2.1256,1841.6,1841.5,2.45427]
[1743311038712,2.1256,1841.6,1841.5,3.42767]
[1743311041509,1.3968,1841.6,1841.5,3.42767]
[1743311041715,0.6821,1841.9,1841.8,1.08619]
[1743311042113,2.8099,1841.9,1841.8,1.08619]
[1743311043016,2.8099,1841.9,1841.8,2.47389]
[1743311043611,2.8099,1841.9,1841.8,1.3877]
[1743311043909,2.8099,1841.9,1841.7,1.76891]
[1743311044208,1.3546,1841.8,1841.7,1.08621]
[1743311045117,1.08627,1841.7,1841.5,0.9734]
[1743311045419,2.7855,1841.6,1841.5,0.9734]
[1743311047015,3.87181,1841.6,1841.5,0.9734]
[1743311055219,7.33281,1841.6,1841.5,0.4752]
[1743311055420,1.08652,1841.3,1841.1,2.46505]
[1743311055620,6.2465,1841.6,1841.1,1.3785]
[1743311055621,1.81675,1841.2,1841.1,1.3785]
[1743311056724,1.08661,1841.1,1841.0,3.461]
[1743311056924,1.08672,1840.9,1840.8,0.008127]
[1743311057223,1.08667,1841.0,1840.8,0.008127]
[1743311057423,2.1841,1840.9,1840.8,0.008127]
[1743311057925,2.8861,1840.9,1840.8,1.386627]
[1743311058220,2.8861,1840.9,1840.8,2.473407]
[1743311058525,2.8861,1840.9,1840.8,1.386627]
[1743311059830,3.97282,1840.9,1840.8,1.386627]
[1743311063726,2.8861,1840.9,1840.8,1.386627]
[1743311067027,0.008127,1841.0,1840.9,1.08672]
[1743311067229,0.008127,1841.0,1840.9,3.91142]
[1743311073534,0.008127,1841.0,1840.9,7.11922]
[1743311076139,0.008127,1841.0,1840.9,10.58122]
[1743311080831,0.008127,1841.0,1840.9,7.11922]
[1743311081135,1.470727,1841.0,1840.9,2.44082]
[1743311082438,1.470727,1841.0,1840.9,1.3541]
[1743311082647,1.470727,1841.0,1840.9,2.44082]
[1743311095949,1.470727,1841.0,1840.9,1.3541]
[1743311096851,1.470727,1841.0,1840.9,2.44082]
[1743311100446,1.470727,1841.0,1840.9,1.3541]
[1743311100750,2.557397,1841.0,1840.8,4.302697]
[1743311100951,0.6847,1840.9,1840.8,5.748107]
[1743311101257,2.1034,1840.9,1840.8,4.302707]
[1743311102348,2.1034,1840.9,1840.8,3.215927]
[1743311102652,2.1034,1840.9,1840.8,0.008127]
[1743311104562,2.1034,1840.9,1840.8,1.094907]
[1743311104875,2.1034,1840.9,1840.8,0.008127]
[1743311105159,3.19012,1840.9,1840.8,0.008127]
[1743311107359,2.1034,1840.9,1840.8,0.008127]
[1743311107562,3.19012,1840.9,1840.8,0.008127]
[1743311109959,5.69012,1840.9,1840.8,0.008127]
[1743311110161,1.08696,1840.5,1840.4,0.473]
[1743311110470,1.08704,1840.4,1840.2,4.99152]
[1743311110761,3.21674,1840.4,1840.2,4.99152]
[1743311111153,0.7188,1840.4,1840.2,3.9044]
[1743311111359,3.2078,1840.9,1840.3,10.43650396]
[1743311111553,4.6187,1840.9,1840.4,3.2078]
[1743311111768,5.70544,1840.9,1840.6,1.0869]
[1743311111959,2.49768,1840.8,1840.7,1.4249]
[1743311112163,1.4109,1840.8,1840.7,1.4249]
[1743311112960,2.49768,1840.8,1840.7,1.4249]
[1743311113366,3.19758,1840.8,1840.7,1.4249]
[1743311113560,2.1108,1840.8,1840.7,2.51174]
[1743311114667,0.739827,1841.0,1840.8,1.08673]
[1743311114869,1.479,1840.9,1840.8,1.83553]
[1743311115164,2.56572,1840.9,1840.6,4.97536]
[1743311115368,2.56572,1840.9,1840.7,1.08683]
[1743311115564,1.479,1840.8,1840.7,1.08683]
[1743311117972,1.428727,1841.0,1840.9,1.08672]
[1743311118269,2.869627,1841.0,1840.9,1.08672]
[1743311119969,2.869627,1841.0,1840.8,1.08675]
[1743311120367,0.008127,1841.0,1840.9,1.08672]
[1743311120969,1.476927,1841.0,1840.9,1.08672]
[1743311121170,2.168127,1841.0,1840.9,1.08672]
[1743311122570,2.168127,1841.0,1840.8,1.08675]
[1743311123774,1.4547,1840.9,1840.8,1.08675]
[1743311123969,1.4547,1840.9,1840.7,1.0868]
[1743311124169,1.08682,1840.8,1840.6,7.3505]
[1743311124478,1.4547,1840.7,1840.6,1.08689]
[1743311124674,2.191,1840.7,1840.6,1.08689]
[1743311126472,2.191,1840.7,1840.5,6.00533]
[1743311126877,1.4547,1840.7,1840.6,1.0869]
[1743311127576,0.008127,1841.0,1840.9,1.08672]
[1743311127977,0.008127,1841.0,1840.9,2.52412]
[1743311128375,23.24648395,1841.5,1840.9,5.02412]
[1743311128579,24.63458395,1841.5,1841.4,1.08643]
[1743311128980,23.24648395,1841.5,1841.4,1.08643]
[1743311129978,4.6040493,1841.6,1841.5,1.08637]
[1743311132579,4.6040493,1841.6,1841.4,1.475]
[1743311132776,4.6040493,1841.6,1841.4,2.56141]
[1743311133273,1.3962493,1841.6,1841.5,1.475]
[1743311133885,1.08643,1841.4,1841.3,0.0081493]
[1743311134583,1.3669,1841.5,1841.3,0.0081493]
[1743311135180,1.3669,1841.5,1841.3,2.5026393]
[1743311135777,2.45329,1841.5,1841.3,1.4161493]
[1743311136178,1.498,1841.4,1841.3,2.5026293]
[1743311137781,1.498,1841.4,1841.3,1.4161493]
[1743311138889,1.498,1841.4,1841.3,2.5026393]
[1743311139088,1.498,1841.4,1841.3,1.4161493]
[1743311140690,1.498,1841.4,1841.3,2.9746393]
[1743311143391,1.498,1841.4,1841.3,1.8881493]
[1743311144091,1.498,1841.4,1841.3,2.9746393]
[1743311153797,1.498,1841.4,1841.3,1.8881493]
[1743311153999,1.498,1841.4,1841.3,2.9746393]
[1743311154197,2.9632,1841.4,1841.3,2.9746393]
[1743311156496,2.9632,1841.4,1841.3,3.6802393]
[1743311157891,2.2198,1841.4,1841.3,3.6802393]
[1743311158798,2.2198,1841.4,1841.3,6.8880393]
[1743311160791,0.0081493,1841.6,1841.3,5.8015493]
[1743311160993,0.0081493,1841.6,1841.5,4.29417]
[1743311161192,0.0081493,1841.6,1841.5,5.73087]
[1743311161390,0.0081493,1841.6,1841.5,6.48047]
[1743311162393,0.0081493,1841.6,1841.5,6.55100221]
[1743311167000,0.0081493,1841.6,1841.5,5.80140221]
[1743311169596,0.0081493,1841.6,1841.5,1.97873221]
[1743311169788,0.0081493,1841.6,1841.5,0.54203221]
[1743311169789,1.0944593,1841.6,1841.5,0.54203221]
[1743311169994,1.08643,1841.4,1841.3,3.2159493]
[1743311170695,2.55253,1841.4,1841.3,3.2159493]
[1743311173204,3.24923,1841.4,1841.3,3.2159493]
[1743311177597,6.45703,1841.4,1841.3,2.23e-05]
[1743311178095,8.95703,1841.4,1841.3,2.23e-05]
[1743311178295,14.79503,1841.4,1841.3,2.23e-05]
[1743311179102,1.08683,1840.8,1840.6,4.6904]
[1743311179305,2.48824,1840.7,1840.6,4.6904]
[1743311180711,1.4014,1840.7,1840.6,4.6904]
[1743311181205,2.7997,1840.7,1840.6,4.6904]
[1743311181799,2.7997,1840.7,1840.6,5.7773]
[1743311181998,2.098,1840.7,1840.6,5.7773]
[1743311182198,6.6688,1841.0,1840.7,1.0868]
[1743311182199,4.5477,1841.0,1840.7,1.0868]
[1743311182398,4.5477,1841.0,1840.8,1.4431]
[1743311182598,1.08672,1840.9,1840.8,2.1888]
[1743311182799,2.48502,1840.9,1840.8,2.1888]
[1743311183295,1.3983,1840.9,1840.6,3.2078]
[1743311183493,1.0869,1840.6,1840.5,0.0081493]
[1743311183893,2.5337,1840.6,1840.5,0.0081493]
[1743311186604,1.4468,1840.6,1840.5,0.0081493]
[1743311186902,1.4904,1840.8,1840.7,1.08684]
[1743311187111,6.03308,1841.0,1840.7,1.08684]
[1743311187302,1.4774,1841.0,1840.9,1.08672]
[1743311187498,1.4108,1841.2,1841.0,1.08665]
[1743311187700,5.838,1841.5,1841.2,1.08651]
[1743311187701,1.4774,1841.4,1841.2,1.08651]
[1743311187900,2.56383,1841.4,1841.3,1.5001]
[1743311188209,3.2078,1841.5,1841.3,2.58659]
[1743311188408,3.2078,1841.5,1841.4,0.7449]
[1743311188709,5.77157,1841.5,1841.4,2.245]
[1743311189808,4.6852,1841.5,1841.4,2.245]
[1743311192407,5.77157,1841.5,1841.4,2.245]
[1743311192903,4.6852,1841.5,1841.4,2.245]
[1743311193304,5.77157,1841.5,1841.4,2.245]
[1743311194414,5.77157,1841.5,1841.4,2.28056844]
[1743311194920,5.77157,1841.5,1841.4,0.03556844]
[1743311200819,5.77157,1841.5,1841.4,1.52176844]
[1743311204111,5.77157,1841.5,1841.4,0.03556844]
[1743311204313,6.51857,1841.5,1841.4,0.03556844]
[1743311206020,1.08649,1841.3,1841.2,1.3812]
[1743311206220,1.00513491,1841.3,1841.2,1.3812]
[1743311210724,2.47477,1841.4,1841.2,2.46773]
[1743311211125,1.08647,1841.4,1841.3,1.4703]
[1743311212326,16.91407522,1872.8,1841.3,15.14278517]
[1743311212327,3.2078,1842.0,1841.3,15.14278517]
[1743311212526,3.2078,1842.0,1841.9,1.08613]
[1743311213929,3.2078,1842.0,1841.9,2.55643]
[1743311214228,4.29388,1842.0,1841.9,1.4703]
[1743311215519,3.2078,1842.0,1841.9,1.4703]
[1743311216726,3.2078,1842.0,1841.9,2.55643]
[1743311216922,0.0081493,1842.1,1842.0,1.08608]
[1743311217628,0.0081493,1842.1,1841.9,2.55641]
[1743311218232,0.0081493,1842.1,1842.0,1.4291]
[1743311220834,0.0081493,1842.1,1842.0,2.51518]
[1743311221035,0.0081493,1842.1,1842.0,1.4291]
[1743311222036,1.4987493,1842.1,1842.0,1.4291]
[1743311222838,0.0081493,1842.1,1842.0,2.51518]
[1743311223437,1.4838493,1842.1,1842.0,2.51518]
[1743311225040,1.4838493,1842.1,1842.0,1.4291]
[1743311225240,2.5698693,1842.1,1842.0,1.4291]
[1743311225641,1.08611,1842.0,1841.8,1.8008193]
[1743311225949,4.29391,1842.0,1841.9,1.4594]
[1743311226342,4.98341,1842.0,1841.9,1.4594]
[1743311227046,1.08613,1841.9,1841.8,0.0081493]
[1743311228548,4.29393,1841.9,1841.8,0.0081493]
[1743311230344,3.2078,1841.9,1841.4,1.5002]
[1743311230648,3.2159493,1842.1,1842.0,1.08608]
[1743311231752,0.0081493,1842.1,1842.0,1.08608]
[1743311231952,0.0081493,1842.1,1842.0,1.78638]
[1743311232148,0.0081493,1842.1,1842.0,4.99418]
[1743311236847,0.0081493,1842.1,1842.0,6.44078]
[1743311244759,0.6871,1842.5,1842.4,1.08584]
[1743311244959,2.1708,1842.5,1842.4,1.08584]
[1743311245462,2.1708,1842.5,1842.4,2.47564]
[1743311247156,1.4837,1842.5,1842.4,2.47564]
[1743311247363,0.0081493,1842.6,1842.5,1.08578]
[1743311247562,0.0081493,1842.6,1842.5,3.16098]
[1743311252959,0.0081493,1842.6,1842.5,6.36878]
[1743311255965,0.0081493,1842.6,1842.5,6.91198]
[1743311257660,0.0081493,1842.6,1842.5,3.70418]
[1743311257868,0.0081493,1842.6,1842.5,6.91198]
[1743311259664,3.2078,1843.0,1842.5,5.8262]
[1743311259865,5.4011,1843.0,1842.9,1.08549]
[1743311260067,3.9356,1843.0,1842.9,1.08549]
[1743311260768,3.9356,1843.0,1842.9,3.22239]
[1743311261771,0.7278,1843.0,1842.9,3.22239]
[1743311263474,0.7278,1843.0,1842.9,2.51599]
[1743311263666,1.81329,1843.0,1842.8,3.489]
[1743311263871,0.7116,1842.9,1842.8,4.57457]
[1743311264672,0.7116,1842.9,1842.8,1.08557]
[1743311268771,0.7116,1842.9,1842.8,2.44877]
[1743311272166,2.1542,1842.9,1842.8,2.44877]
[1743311277178,2.1542,1842.9,1842.6,0.5432]
[1743311277373,1.4271,1842.8,1842.7,2.56826]
[1743311277575,1.4271,1842.8,1842.7,5.77606]
[1743311278772,1.4271,1842.8,1842.7,1.08566]
[1743311280185,1.4271,1842.8,1842.6,2.0332]
[1743311280478,0.717,1842.7,1842.6,1.49]
[1743311280676,1.08583,1842.5,1842.3,3.2078]
[1743311280880,1.4049,1842.4,1842.2,1.49]
[1743311281080,2.8363,1842.4,1842.2,1.49]
[1743311281578,1.4373,1842.3,1842.2,2.57596]
[1743311286977,1.4373,1842.3,1842.2,1.49]
[1743311287182,2.5232,1842.3,1842.2,1.49]
[1743311287381,5.731,1842.3,1842.1,1.79101]
[1743311287583,1.357,1842.2,1842.1,1.79101]
[1743311287778,1.357,1842.2,1842.1,3.24091]
[1743311288478,10.05297,1842.2,1841.4,3.7508]
[1743311288685,10.05297,1842.2,1841.5,2.1821]
[1743311288686,4.29395,1841.9,1841.5,2.1821]
[1743311288874,0.7062,1841.8,1841.6,2.53618]
[1743311289082,5.5452,1841.8,1841.2,3.2078]
[1743311289287,4.29422,1841.5,1841.1,1.08657]
[1743311289487,0.7062,1841.4,1841.2,1.4499]
[1743311289686,2.0632,1841.4,1841.2,1.4499]
[1743311290091,1.357,1841.3,1841.2,1.4499]
[1743311290289,2.44349,1841.3,1841.2,1.4499]
[1743311290892,1.357,1841.3,1841.2,1.4499]
[1743311291291,1.357,1841.3,1841.2,2.53645]
[1743311291589,1.357,1841.3,1841.2,1.4499]
[1743311292189,2.44349,1841.3,1841.2,1.4499]
[1743311292591,2.44349,1841.3,1841.1,0.0081493]
[1743311292789,1.433,1841.2,1841.1,1.4360493]
[1743311294892,1.433,1841.2,1841.1,2.5226593]
[1743311295188,1.433,1841.2,1841.1,1.4360493]
[1743311295592,2.51955,1841.2,1841.1,1.4360493]
[1743311296289,2.51955,1841.2,1841.1,0.0081493]
[1743311296684,1.433,1841.2,1841.1,0.0081493]
[1743311299091,4.925,1841.2,1841.1,0.0081493]
[1743311308012,7.4,1841.4,1841.1,0.0081493]
[1743311308314,8.798,1841.4,1841.1,0.7339493]
[1743311308513,1.398,1841.3,1841.2,1.3834]
[1743311311209,1.398,1841.3,1841.2,2.063]
[1743311316822,1.398,1841.3,1841.2,0.6796]
[1743311317720,1.398,1841.3,1841.1,0.0081493]
[1743311318321,1.398,1841.3,1841.1,1.3748493]
[1743311320122,3.2078,1841.2,1841.1,1.3748493]
[1743311320619,1.398,1841.3,1841.1,1.3748493]
[1743311321020,1.398,1841.3,1841.2,0.7441]
[1743311328225,1.398,1841.3,1841.1,1.3748493]
[1743311331528,4.872,1841.3,1841.1,1.3748493]
[1743311332027,1.4487,1841.2,1841.1,1.3748493]
[1743311335226,1.4487,1841.2,1841.1,0.0081493]
[1743311335425,4.6565,1841.2,1841.0,0.7238]
[1743311335624,0.702,1841.1,1841.0,0.7238]
[1743311335931,2.1967,1841.1,1841.0,0.7238]
[1743311336520,2.1967,1841.1,1840.9,1.4374493]
[1743311336720,1.3597,1841.0,1840.9,1.4374493]
[1743311341635,0.702,1841.1,1840.9,1.4374493]
[1743311341837,1.3981,1841.1,1841.0,0.7213]
[1743311342035,1.3981,1841.1,1841.0,1.4236]
[1743311342633,2.48471,1841.1,1841.0,1.4236]
[1743311343137,2.48471,1841.1,1841.0,0.7023]
[1743311343435,3.21301,1841.1,1841.0,0.7023]
[1743311348627,1.08667,1841.0,1840.9,1.4374493]
[1743311348833,2.50557,1841.0,1840.9,1.4374493]
[1743311349441,1.08667,1841.0,1840.9,1.4374493]
[1743311350145,4.29447,1841.0,1840.9,1.4374493]
[1743311353442,3.2159493,1841.5,1840.9,10.6142493]
[1743311353746,0.0081493,1841.5,1841.4,1.08643]
[1743311353945,0.0081493,1841.5,1841.4,2.58733]
[1743311354848,1.80101,1841.8,1841.5,1.08635]
[1743311355146,1.80101,1841.8,1841.6,1.4214]
[1743311356745,1.80101,1841.8,1841.6,2.1492]
[1743311357244,1.80101,1841.8,1841.7,1.4214]
[1743311357445,3.21661,1841.8,1841.7,1.4214]
[1743311359842,1.08625,1841.7,1841.6,0.7163]
[1743311360046,2.50185,1841.7,1841.6,2.1049]
[1743311361144,1.08631,1841.6,1841.3,1.79376]
[1743311361347,2.53051,1841.6,1841.4,4.5658]
[1743311361546,2.53051,1841.6,1841.5,1.358]
[1743311364846,0.0081493,1841.9,1841.8,1.08619]
[1743311365149,23.24648395,1842.2,1842.1,1.08602]
[1743311365456,23.24648395,1842.2,1842.1,4.29382]
[1743311366653,23.24648395,1842.2,1842.1,3.2078]
[1743311366846,24.71978395,1842.2,1842.1,3.2078]
[1743311367046,24.71978395,1842.2,1842.1,4.6482]
[1743311367650,2.55926,1842.2,1842.1,4.6482]
[1743311368255,1.4733,1842.2,1842.1,4.6482]
[1743311368454,2.55926,1842.2,1842.1,4.6482]
[1743311368652,1.4733,1842.2,1842.1,4.6482]
[1743311369159,2.55926,1842.2,1842.1,4.6482]
[1743311369349,1.4733,1842.2,1842.1,4.6482]
[1743311371560,1.08602,1842.1,1842.0,0.0081493]
[1743311371752,1.79702,1842.1,1842.0,0.0081493]
[1743311372450,3.28682,1842.1,1842.0,0.0081493]
[1743311379164,4.00422,1842.1,1842.0,0.0081493]
[1743311383468,3.28682,1842.1,1842.0,0.0081493]
[1743311383666,6.79382,1842.1,1842.0,0.0081493]
[1743311383865,2.2008,1842.1,1842.0,0.0081493]
[1743311384265,2.2008,1842.1,1842.0,1.4994493]
[1743311384768,0.711,1842.1,1842.0,2.5855293]
[1743311385070,1.404,1842.2,1842.0,2.5855293]
[1743311385267,0.0081493,1842.3,1842.2,1.08596]
[1743311385471,0.0081493,1842.3,1842.2,2.1144]
[1743311392577,2.5309493,1842.3,1842.2,2.1144]
[1743311393673,1.4450493,1842.3,1842.2,2.1144]
[1743311394763,2.5309493,1842.3,1842.2,2.1144]
[1743311395172,1.4450493,1842.3,1842.2,2.1144]
[1743311396975,0.0081493,1842.3,1842.2,3.20036]
[1743311406794,1.3614493,1842.3,1842.2,3.20036]
[1743311407894,2.4473493,1842.3,1842.2,2.1144]
[1743311408498,1.08596,1842.2,1842.1,3.2078]
[1743311408688,2.43926,1842.2,1842.1,3.2078]
[1743311408888,3.15226,1842.2,1842.1,3.2078]
[1743311410200,2.0663,1842.2,1842.1,3.2078]
[1743311410500,1.3533,1842.2,1842.1,4.29382]
[1743311410792,1.3533,1842.2,1842.1,4.6277]
[1743311412394,2.43926,1842.2,1842.1,4.6277]
[1743311412603,1.08602,1842.1,1842.0,0.0081493]
[1743311412790,1.08635,1841.6,1841.5,2.158]
[1743311412995,1.08639,1841.5,1841.3,0.7341]
[1743311413199,1.08643,1841.4,1841.3,0.7501]
[1743311413399,1.08643,1841.4,1841.2,1.4079]
[1743311413595,1.361,1841.3,1841.2,1.4079]
[1743311413992,2.44749,1841.3,1841.2,1.4079]
[1743311414302,1.361,1841.3,1841.2,1.4079]
[1743311414705,2.44749,1841.3,1841.2,1.4079]
[1743311415102,1.361,1841.3,1841.2,1.4079]
[1743311415299,2.44749,1841.3,1841.2,1.4079]
[1743311415498,1.361,1841.3,1841.2,1.4079]
[1743311416603,2.44749,1841.3,1841.2,1.4079]
[1743311419907,1.08655,1841.2,1841.1,3.2159493]
[1743311420107,2.53315,1841.2,1841.1,3.2159493]
[1743311421006,2.53315,1841.2,1841.1,0.0081493]
[1743311426412,3.25315,1841.2,1841.1,0.0081493]
[1743311433523,6.46095,1841.2,1841.1,0.0081493]
[1743311441427,3.25315,1841.2,1841.1,0.0081493]
[1743311441627,6.46095,1841.2,1841.1,0.0081493]
[1743311442127,9.94595,1841.2,1841.1,0.0081493]
[1743311442329,6.73815,1841.2,1841.1,0.0081493]
[1743311442630,9.94595,1841.2,1841.1,0.0081493]
[1743311445627,9.22295,1841.2,1841.1,0.0081493]
[1743311448725,5.74095,1841.2,1841.1,0.0081493]
[1743311448923,0.0081493,1841.3,1841.1,2.4768393]
[1743311449126,0.0081493,1841.3,1841.2,1.3821]
[1743311449637,1.0946393,1841.3,1841.2,1.3821]
[1743311452032,0.0081493,1841.3,1841.2,1.3821]
[1743311452232,1.3631493,1841.3,1841.2,1.3821]
[1743311452628,2.4496393,1841.3,1841.2,1.3821]
[1743311459243,0.0081493,1841.3,1841.2,1.3821]
[1743311461736,1.0946393,1841.3,1841.2,1.3821]
[1743311461939,0.0081493,1841.3,1841.2,1.3821]
[1743311465248,1.0946393,1841.3,1841.2,1.3821]
[1743311465947,0.0081493,1841.3,1841.2,1.3821]
[1743311468348,1.0946393,1841.3,1841.2,1.3821]
[1743311468947,0.0081493,1841.3,1841.2,1.3821]
[1743311471051,1.4830493,1841.3,1841.2,1.3821]
[1743311471255,2.5695393,1841.3,1841.2,1.3821]
[1743311471743,5.7773393,1841.3,1841.2,1.3821]
[1743311472350,6.5103393,1841.3,1841.2,1.3821]
[1743311476047,1.08655,1841.2,1841.1,0.0081493]
[1743311476256,2.54515,1841.2,1841.1,0.0081493]
[1743311477343,6.01315,1841.2,1841.1,0.0081493]
[1743311477946,1.08692,1840.6,1840.3,4.29484]
[1743311478152,3.472,1840.8,1840.4,2.1663]
[1743311478355,7.76655,1840.9,1840.5,5.4127]
[1743311478649,6.6798,1840.9,1840.6,1.4757]
[1743311478850,7.76653,1840.9,1840.6,2.56257]
[1743311479149,4.55873,1840.9,1840.7,0.6906]
[1743311479452,4.55873,1840.9,1840.8,1.4757]
[1743311479854,1.08673,1840.9,1840.8,1.4757]
[1743311480854,2.44883,1840.9,1840.8,1.4757]
[1743311482453,3.2078,1841.2,1840.8,1.4757]
[1743311482649,4.9032493,1841.3,1840.9,3.9361]
[1743311482849,1.08656,1841.2,1841.0,2.1262]
[1743311483050,1.08656,1841.2,1841.1,1.388]
[1743311484259,2.50966,1841.2,1841.1,1.388]
[1743311488856,0.0081493,1841.3,1841.1,4.5958]
[1743311489057,0.0081493,1841.3,1841.2,1.83105]
[1743311489259,0.0081493,1841.3,1841.2,3.25515]
[1743311493265,0.0081493,1841.3,1841.2,2.1686]
[1743311493563,0.0081493,1841.3,1841.2,3.25515]
[1743311494068,0.0081493,1841.3,1841.2,2.1686]
[1743311495169,0.0081493,1841.3,1841.2,3.25515]
[1743311508878,0.0081493,1841.3,1841.2,2.51065]
[1743311509181,1.3838493,1841.3,1841.2,2.51065]
[1743311509580,2.4703393,1841.3,1841.2,2.51065]
[1743311509974,1.3838493,1841.3,1841.2,2.51065]
[1743311521491,0.0081493,1841.3,1841.2,2.51065]
[1743311523181,1.4274493,1841.3,1841.2,2.51065]
[1743311524085,2.5139393,1841.3,1841.2,1.4241]
[1743311524288,1.4274493,1841.3,1841.2,2.51065]
[1743311528995,2.5139393,1841.3,1841.2,1.4241]
[1743311529195,3.2064393,1841.3,1841.1,4.29439]
[1743311529395,1.5023,1841.2,1841.1,5.78089]
[1743311533090,1.5023,1841.2,1841.1,2.57309]
[1743311533292,1.5023,1841.2,1841.1,5.78089]
[1743311541501,1.5023,1841.2,1841.1,2.57309]
[1743311541702,1.5023,1841.2,1841.1,5.78089]
[1743311542808,1.5023,1841.2,1841.1,2.57309]
[1743311543008,1.5023,1841.2,1841.1,5.78089]
[1743311544123,0.0081493,1841.3,1841.2,1.08655]
[1743311544311,0.0081493,1841.3,1841.2,2.52185]
[1743311545613,1.08629,1841.7,1841.5,1.08636]
[1743311545810,3.15869,1841.7,1841.5,1.08636]
[1743311546015,3.15869,1841.7,1841.6,1.4353]
[1743311546322,1.77289,1841.7,1841.6,1.4353]
[1743311554626,0.6866,1841.7,1841.6,2.52161]
[1743311557330,0.6866,1841.7,1841.6,3.21461]
[1743311560934,0.6866,1841.7,1841.6,2.1283]
[1743311561126,1.77285,1841.7,1841.6,2.1283]
[1743311561535,0.6866,1841.7,1841.6,2.1283]
[1743311561735,0.6866,1841.7,1841.6,3.21461]
[1743311563424,2.0589,1841.7,1841.6,3.21461]
[1743311566035,2.0589,1841.7,1841.6,2.1283]
[1743311567429,2.0589,1841.7,1841.6,3.21461]
[1743311569227,3.14515,1841.7,1841.5,4.29414]